[Event "Titled Tuesday Blitz June 21 Late 2022"]
[White "Svane, Rasmus"]
[Black "Kravtsiv, Martyn"]
[WhiteFideId "4657101"]
[BlackFideId "14113147"]
[WhiteElo "2674"]
[BlackElo "2694"]
[Result "1-0"]
[Round "04"]
[TimeControl "180+1"]
[Date "2022.06.21"]
[WhiteClock "0:00:12"]
[BlackClock "0:00:07"]

1. Nf3 {[%clk 0:03:00]}  d5 {[%clk 0:03:00]} 2. g3 {[%clk 0:03:00]}  Nf6 {[%clk 0:03:00]} 3. Bg2 {[%clk 0:03:01]}  c5 {[%clk 0:03:00]} 4. O-O {[%clk 0:03:00]}  e6 {[%clk 0:03:00]} 5. c4 {[%clk 0:02:57]}  d4 {[%clk 0:03:00]} 6. e3 {[%clk 0:02:57]}  Nc6 {[%clk 0:03:00]} 7. exd4 {[%clk 0:02:58]}  cxd4 {[%clk 0:03:01]} 8. d3 {[%clk 0:02:59]}  Bd6 {[%clk 0:03:00]} 9. Bg5 {[%clk 0:02:59]}  h6 {[%clk 0:02:57]} 10. Bxf6 {[%clk 0:02:59]}  Qxf6 {[%clk 0:02:57]} 11. a3 {[%clk 0:02:59]}  a5 {[%clk 0:02:56]} 12. Nfd2 {[%clk 0:03:00]}  Qd8 {[%clk 0:02:44]} 13. Ne4 {[%clk 0:02:59]}  Be7 {[%clk 0:02:43]} 14. c5 {[%clk 0:03:00]}  O-O {[%clk 0:02:38]} 15. Nbd2 {[%clk 0:03:00]}  f5 {[%clk 0:02:33]} 16. Nd6 {[%clk 0:03:00]}  Bxd6 {[%clk 0:02:33]} 17. cxd6 {[%clk 0:03:01]}  Qxd6 {[%clk 0:02:34]} 18. Nc4 {[%clk 0:03:00]}  Qc7 {[%clk 0:02:27]} 19. Re1 {[%clk 0:02:59]}  Bd7 {[%clk 0:02:27]} 20. Rc1 {[%clk 0:02:58]}  Rfc8 {[%clk 0:02:17]} 21. Qb3 {[%clk 0:02:52]}  a4 {[%clk 0:02:03]} 22. Qb5 {[%clk 0:02:42]}  Ra6 {[%clk 0:01:59]} 23. Qc5 {[%clk 0:02:35]}  Na5 {[%clk 0:01:21]} 24. Qb4 {[%clk 0:01:21]}  Nb3 {[%clk 0:01:06]} 25. Rcd1 {[%clk 0:01:22]}  b5 {[%clk 0:00:58]} 26. Ne5 {[%clk 0:01:20]}  Rd6 {[%clk 0:00:51]} 27. Bf3 {[%clk 0:01:09]}  Be8 {[%clk 0:00:51]} 28. Re2 {[%clk 0:00:58]}  Qc5 {[%clk 0:00:44]} 29. Qe1 {[%clk 0:00:59]}  Rb6 {[%clk 0:00:42]} 30. Bg2 {[%clk 0:00:53]}  Bh5 {[%clk 0:00:38]} 31. Bf3 {[%clk 0:00:53]}  Be8 {[%clk 0:00:37]} 32. Bg2 {[%clk 0:00:53]}  Rd6 {[%clk 0:00:36]} 33. Nf3 {[%clk 0:00:45]}  Qb6 {[%clk 0:00:34]} 34. Nd2 {[%clk 0:00:44]}  Bh5 {[%clk 0:00:30]} 35. Bf3 {[%clk 0:00:42]}  Nxd2 {[%clk 0:00:27]} 36. Bxh5 {[%clk 0:00:42]}  Nb3 {[%clk 0:00:28]} 37. Qb4 {[%clk 0:00:38]}  Qc5 {[%clk 0:00:27]} 38. Qe1 {[%clk 0:00:34]}  Qd5 {[%clk 0:00:27]} 39. Re5 {[%clk 0:00:31]}  Qc6 {[%clk 0:00:27]} 40. Qb4 {[%clk 0:00:27]}  Rd5 {[%clk 0:00:27]} 41. Bf3 {[%clk 0:00:26]}  Rxe5 {[%clk 0:00:24]} 42. Bxc6 {[%clk 0:00:27]}  Rxc6 {[%clk 0:00:25]} 43. Qe7 {[%clk 0:00:25]}  Rc2 {[%clk 0:00:23]} 44. Rf1 {[%clk 0:00:19]}  Kh7 {[%clk 0:00:22]} 45. Kg2 {[%clk 0:00:18]}  Rxb2 {[%clk 0:00:22]} 46. h4 {[%clk 0:00:15]}  Nd2 {[%clk 0:00:15]} 47. Rc1 {[%clk 0:00:14]}  f4 {[%clk 0:00:07]} 48. Rc7 {[%clk 0:00:12]} 1-0


[Site "https://www.chess.com"]

[Event "Titled Tuesday Blitz June 21 Late 2022"]
[White "Tanenbaum, Zachary"]
[Black "Florescu, Codrut-Constantin"]
[WhiteFideId "2060850"]
[BlackFideId "1202200"]
[WhiteElo "2175"]
[BlackElo "2191"]
[Result "1/2-1/2"]
[Round "04"]
[TimeControl "180+1"]
[Date "2022.06.21"]
[WhiteClock "0:00:17"]
[BlackClock "0:00:57"]

1. e4 {[%clk 0:03:00]}  c5 {[%clk 0:02:59]} 2. Nf3 {[%clk 0:03:00]}  e6 {[%clk 0:03:00]} 3. d4 {[%clk 0:03:00]}  cxd4 {[%clk 0:03:00]} 4. Nxd4 {[%clk 0:03:00]}  a6 {[%clk 0:03:00]} 5. Bd3 {[%clk 0:02:59]}  Nf6 {[%clk 0:02:59]} 6. O-O {[%clk 0:02:58]}  Qc7 {[%clk 0:02:58]} 7. Nc3 {[%clk 0:02:58]}  Bd6 {[%clk 0:02:55]} 8. h3 {[%clk 0:02:52]}  Nc6 {[%clk 0:02:54]} 9. Be3 {[%clk 0:02:46]}  Bh2+ {[%clk 0:02:42]} 10. Kh1 {[%clk 0:02:46]}  Bf4 {[%clk 0:02:43]} 11. Qd2 {[%clk 0:02:41]}  Bxe3 {[%clk 0:02:40]} 12. Qxe3 {[%clk 0:02:42]}  Qb6 {[%clk 0:02:30]} 13. Nd5 {[%clk 0:02:13]}  Nxd5 {[%clk 0:02:18]} 14. exd5 {[%clk 0:02:13]}  Qxd4 {[%clk 0:02:15]} 15. dxc6 {[%clk 0:02:13]}  Qxe3 {[%clk 0:02:15]} 16. cxd7+ {[%clk 0:02:12]}  Bxd7 {[%clk 0:02:15]} 17. fxe3 {[%clk 0:02:13]}  Bc6 {[%clk 0:02:13]} 18. Rad1 {[%clk 0:01:56]}  Ke7 {[%clk 0:02:13]} 19. Be2 {[%clk 0:01:54]}  Rad8 {[%clk 0:02:12]} 20. Bf3 {[%clk 0:01:53]}  f5 {[%clk 0:02:09]} 21. Bxc6 {[%clk 0:01:51]}  bxc6 {[%clk 0:02:08]} 22. Kg1 {[%clk 0:01:51]}  g6 {[%clk 0:02:08]} 23. Kf2 {[%clk 0:01:46]}  e5 {[%clk 0:02:05]} 24. Ke2 {[%clk 0:01:43]}  Ke6 {[%clk 0:02:05]} 25. Rd3 {[%clk 0:01:35]}  e4 {[%clk 0:02:02]} 26. Ra3 {[%clk 0:01:30]}  Ra8 {[%clk 0:02:00]} 27. Rd1 {[%clk 0:01:27]}  Rhb8 {[%clk 0:01:59]} 28. b3 {[%clk 0:01:25]}  a5 {[%clk 0:01:58]} 29. Rd4 {[%clk 0:01:09]}  Rb5 {[%clk 0:01:58]} 30. Rda4 {[%clk 0:01:07]}  Rd5 {[%clk 0:01:48]} 31. Rc4 {[%clk 0:00:52]}  c5 {[%clk 0:01:43]} 32. Rca4 {[%clk 0:00:49]}  Rad8 {[%clk 0:01:40]} 33. Rxa5 {[%clk 0:00:47]}  Rd2+ {[%clk 0:01:39]} 34. Kf1 {[%clk 0:00:46]}  Rxc2 {[%clk 0:01:39]} 35. Ke1 {[%clk 0:00:33]}  Rdd2 {[%clk 0:01:38]} 36. Rxc5 {[%clk 0:00:30]}  Re2+ {[%clk 0:01:34]} 37. Kd1 {[%clk 0:00:29]}  Rcd2+ {[%clk 0:01:30]} 38. Kc1 {[%clk 0:00:28]}  Rxa2 {[%clk 0:01:30]} 39. Rxa2 {[%clk 0:00:26]}  Rxa2 {[%clk 0:01:31]} 40. Rc2 {[%clk 0:00:24]}  Ra1+ {[%clk 0:01:28]} 41. Kb2 {[%clk 0:00:24]}  Re1 {[%clk 0:01:27]} 42. Rc3 {[%clk 0:00:17]}  Kd5 {[%clk 0:01:27]} 43. b4 {[%clk 0:00:17]}  Re2+ {[%clk 0:01:26]} 44. Kb3 {[%clk 0:00:16]}  Rxg2 {[%clk 0:01:26]} 45. b5 {[%clk 0:00:16]}  Rg1 {[%clk 0:01:17]} 46. Kb2 {[%clk 0:00:16]}  Rg2+ {[%clk 0:01:11]} 47. Kb3 {[%clk 0:00:16]}  Rg1 {[%clk 0:00:57]} 48. Kb2 {[%clk 0:00:16]}  Rg2+ {[%clk 0:00:57]} 49. Kb3 {[%clk 0:00:17]} 1/2-1/2


[Site "https://www.chess.com"]

[Event "Titled Tuesday Blitz June 21 Late 2022"]
[White "Tymrakiewicz, Rafal"]
[Black "Bilych, Olexiy"]
[WhiteFideId "1108832"]
[BlackFideId "14156504"]
[WhiteElo "2205"]
[BlackElo "2189"]
[Result "0-1"]
[Round "04"]
[TimeControl "180+1"]
[Date "2022.06.22"]
[WhiteClock "0:00:03"]
[BlackClock "0:00:22"]

1. d4 {[%clk 0:02:55]}  Nf6 {[%clk 0:03:00]} 2. Bg5 {[%clk 0:02:54]}  Ne4 {[%clk 0:02:58]} 3. Bf4 {[%clk 0:02:53]}  d5 {[%clk 0:02:59]} 4. e3 {[%clk 0:02:53]}  Nc6 {[%clk 0:02:59]} 5. Bd3 {[%clk 0:02:50]}  Bf5 {[%clk 0:02:34]} 6. f3 {[%clk 0:02:45]}  Nd6 {[%clk 0:02:33]} 7. Bxd6 {[%clk 0:02:45]}  Bxd3 {[%clk 0:02:29]} 8. Bxc7 {[%clk 0:02:32]}  Bxc2 {[%clk 0:02:22]} 9. Bxd8 {[%clk 0:02:17]}  Bxd1 {[%clk 0:02:21]} 10. Kxd1 {[%clk 0:02:12]}  Rxd8 {[%clk 0:02:17]} 11. Nc3 {[%clk 0:02:12]}  e6 {[%clk 0:02:17]} 12. Nge2 {[%clk 0:02:02]}  Be7 {[%clk 0:02:16]} 13. Nf4 {[%clk 0:01:54]}  O-O {[%clk 0:02:15]} 14. Nd3 {[%clk 0:01:54]}  Rc8 {[%clk 0:02:14]} 15. Kd2 {[%clk 0:01:50]}  Na5 {[%clk 0:01:52]} 16. b3 {[%clk 0:01:50]}  a6 {[%clk 0:01:40]} 17. Rac1 {[%clk 0:01:46]}  Ba3 {[%clk 0:01:39]} 18. Rc2 {[%clk 0:01:46]}  Rc7 {[%clk 0:01:37]} 19. Nb1 {[%clk 0:01:38]}  Rxc2+ {[%clk 0:01:36]} 20. Kxc2 {[%clk 0:01:39]}  Rc8+ {[%clk 0:01:37]} 21. Kd2 {[%clk 0:01:38]}  Bd6 {[%clk 0:01:36]} 22. f4 {[%clk 0:01:33]}  Nc6 {[%clk 0:01:29]} 23. Rc1 {[%clk 0:01:32]}  Kf8 {[%clk 0:01:26]} 24. Nc5 {[%clk 0:01:29]}  Bxc5 {[%clk 0:01:19]} 25. Rxc5 {[%clk 0:01:30]}  Ke7 {[%clk 0:01:19]} 26. Rc1 {[%clk 0:01:00]}  Kd7 {[%clk 0:01:15]} 27. Nc3 {[%clk 0:00:54]}  Ne7 {[%clk 0:01:12]} 28. Na4 {[%clk 0:00:51]}  Rxc1 {[%clk 0:01:12]} 29. Kxc1 {[%clk 0:00:52]}  Nf5 {[%clk 0:01:10]} 30. Kd2 {[%clk 0:00:52]}  Nd6 {[%clk 0:01:05]} 31. Kd3 {[%clk 0:00:51]}  Kc6 {[%clk 0:01:04]} 32. Nc3 {[%clk 0:00:51]}  b6 {[%clk 0:01:00]} 33. a4 {[%clk 0:00:48]}  a5 {[%clk 0:00:58]} 34. g4 {[%clk 0:00:41]}  g6 {[%clk 0:00:58]} 35. g5 {[%clk 0:00:40]}  b5 {[%clk 0:00:49]} 36. axb5+ {[%clk 0:00:32]}  Nxb5 {[%clk 0:00:50]} 37. Na4 {[%clk 0:00:32]}  Nd6 {[%clk 0:00:50]} 38. Nc5 {[%clk 0:00:31]}  Kb5 {[%clk 0:00:49]} 39. Nd7 {[%clk 0:00:30]}  Kb4 {[%clk 0:00:45]} 40. Nc5 {[%clk 0:00:29]}  Ne4 {[%clk 0:00:40]} 41. Nxe4 {[%clk 0:00:22]}  dxe4+ {[%clk 0:00:41]} 42. Kc2 {[%clk 0:00:20]}  Ka3 {[%clk 0:00:18]} 43. Kc3 {[%clk 0:00:20]}  Ka2 {[%clk 0:00:19]} 44. b4 {[%clk 0:00:13]}  axb4+ {[%clk 0:00:19]} 45. Kxb4 {[%clk 0:00:13]}  Kb2 {[%clk 0:00:20]} 46. Kc4 {[%clk 0:00:14]}  Kc2 {[%clk 0:00:21]} 47. d5 {[%clk 0:00:03]}  exd5+ {[%clk 0:00:22]} 0-1


[Site "https://www.chess.com"]

[Event "Titled Tuesday Blitz June 21 Late 2022"]
[White "Veiga, Jose Francisco R P Neves"]
[Black "Suder, Jakub"]
[WhiteFideId "1930087"]
[BlackFideId "1195310"]
[WhiteElo "2326"]
[BlackElo "2058"]
[Result "1-0"]
[Round "04"]
[TimeControl "180+1"]
[Date "2022.06.22"]
[WhiteClock "0:00:13"]
[BlackClock "0:01:48"]

1. e4 {[%clk 0:02:54]}  c5 {[%clk 0:03:00]} 2. Nf3 {[%clk 0:02:53]}  Nc6 {[%clk 0:02:59]} 3. Bb5 {[%clk 0:02:52]}  Nf6 {[%clk 0:02:58]} 4. Nc3 {[%clk 0:02:46]}  Qc7 {[%clk 0:02:57]} 5. O-O {[%clk 0:02:45]}  Nd4 {[%clk 0:02:57]} 6. Bd3 {[%clk 0:02:38]}  Ng4 {[%clk 0:02:53]} 7. g3 {[%clk 0:02:35]}  Nxf3+ {[%clk 0:02:53]} 8. Qxf3 {[%clk 0:02:34]}  Ne5 {[%clk 0:02:54]} 9. Qe3 {[%clk 0:02:32]}  Nxd3 {[%clk 0:02:54]} 10. Qxd3 {[%clk 0:02:31]}  e6 {[%clk 0:02:54]} 11. Qe2 {[%clk 0:02:20]}  a6 {[%clk 0:02:54]} 12. d3 {[%clk 0:02:18]}  b5 {[%clk 0:02:54]} 13. Bf4 {[%clk 0:02:18]}  d6 {[%clk 0:02:53]} 14. Rad1 {[%clk 0:02:13]}  Bb7 {[%clk 0:02:53]} 15. a4 {[%clk 0:01:54]}  Bc6 {[%clk 0:02:51]} 16. axb5 {[%clk 0:01:54]}  axb5 {[%clk 0:02:51]} 17. Ra1 {[%clk 0:01:54]}  Rxa1 {[%clk 0:02:49]} 18. Rxa1 {[%clk 0:01:55]}  Be7 {[%clk 0:02:48]} 19. d4 {[%clk 0:01:20]}  b4 {[%clk 0:02:41]} 20. Nb5 {[%clk 0:01:02]}  Qb8 {[%clk 0:02:41]} 21. Na7 {[%clk 0:01:01]}  Qb7 {[%clk 0:02:29]} 22. Nxc6 {[%clk 0:00:54]}  Qxc6 {[%clk 0:02:29]} 23. d5 {[%clk 0:00:54]}  Qb7 {[%clk 0:02:25]} 24. Qa6 {[%clk 0:00:43]}  Qxa6 {[%clk 0:02:25]} 25. Rxa6 {[%clk 0:00:43]}  e5 {[%clk 0:02:23]} 26. Ra8+ {[%clk 0:00:38]}  Bd8 {[%clk 0:02:23]} 27. Bg5 {[%clk 0:00:38]}  f6 {[%clk 0:02:23]} 28. Be3 {[%clk 0:00:38]}  Kd7 {[%clk 0:02:22]} 29. Kf1 {[%clk 0:00:38]}  Re8 {[%clk 0:02:22]} 30. Ke2 {[%clk 0:00:36]}  g6 {[%clk 0:02:19]} 31. f3 {[%clk 0:00:34]}  f5 {[%clk 0:02:19]} 32. Kd3 {[%clk 0:00:34]}  Bc7 {[%clk 0:02:19]} 33. Rxe8 {[%clk 0:00:34]}  Kxe8 {[%clk 0:02:20]} 34. Kc4 {[%clk 0:00:34]}  Kd7 {[%clk 0:02:21]} 35. Kb5 {[%clk 0:00:32]}  Bd8 {[%clk 0:02:21]} 36. Bd2 {[%clk 0:00:23]}  Be7 {[%clk 0:02:17]} 37. c3 {[%clk 0:00:23]}  bxc3 {[%clk 0:02:16]} 38. Bxc3 {[%clk 0:00:21]}  Bg5 {[%clk 0:02:16]} 39. g4 {[%clk 0:00:21]}  fxe4 {[%clk 0:02:15]} 40. fxe4 {[%clk 0:00:21]}  h5 {[%clk 0:02:16]} 41. h3 {[%clk 0:00:21]}  Be3 {[%clk 0:02:16]} 42. b4 {[%clk 0:00:21]}  Bd4 {[%clk 0:02:13]} 43. Bd2 {[%clk 0:00:20]}  Ke7 {[%clk 0:02:11]} 44. bxc5 {[%clk 0:00:20]}  Bxc5 {[%clk 0:02:11]} 45. Bg5+ {[%clk 0:00:18]}  Kd7 {[%clk 0:02:10]} 46. Bd2 {[%clk 0:00:18]}  Kc7 {[%clk 0:02:08]} 47. Ba5+ {[%clk 0:00:18]}  Kb7 {[%clk 0:02:08]} 48. Bd8 {[%clk 0:00:17]}  Kc8 {[%clk 0:02:07]} 49. Bg5 {[%clk 0:00:17]}  Kd7 {[%clk 0:02:08]} 50. Ka6 {[%clk 0:00:17]}  hxg4 {[%clk 0:02:08]} 51. hxg4 {[%clk 0:00:17]}  Bb4 {[%clk 0:02:08]} 52. Kb7 {[%clk 0:00:17]}  Bc3 {[%clk 0:02:09]} 53. Be3 {[%clk 0:00:17]}  Bd4 {[%clk 0:02:08]} 54. Bd2 {[%clk 0:00:18]}  Ke7 {[%clk 0:02:08]} 55. Kc6 {[%clk 0:00:17]}  Bc5 {[%clk 0:02:08]} 56. Bg5+ {[%clk 0:00:17]}  Ke8 {[%clk 0:02:07]} 57. Kc7 {[%clk 0:00:17]}  Bb4 {[%clk 0:02:06]} 58. Be3 {[%clk 0:00:17]}  Ke7 {[%clk 0:02:05]} 59. Kc8 {[%clk 0:00:13]}  Ba5 {[%clk 0:02:05]} 60. Bg5+ {[%clk 0:00:12]}  Ke8 {[%clk 0:02:05]} 61. Bf6 {[%clk 0:00:09]}  Bb6 {[%clk 0:02:02]} 62. Kb7 {[%clk 0:00:09]}  Bc5 {[%clk 0:02:01]} 63. Kc6 {[%clk 0:00:10]}  Kf7 {[%clk 0:02:00]} 64. Bg5 {[%clk 0:00:11]}  Ba3 {[%clk 0:02:00]} 65. Bd8 {[%clk 0:00:11]}  Ke8 {[%clk 0:02:00]} 66. Bf6 {[%clk 0:00:11]}  Kf7 {[%clk 0:02:00]} 67. Bg5 {[%clk 0:00:11]}  Bb4 {[%clk 0:02:00]} 68. Kd7 {[%clk 0:00:11]}  Bc5 {[%clk 0:01:55]} 69. Be7 {[%clk 0:00:12]}  Bd4 {[%clk 0:01:55]} 70. Bxd6 {[%clk 0:00:12]}  Kf6 {[%clk 0:01:56]} 71. Bc7 {[%clk 0:00:12]}  Kg5 {[%clk 0:01:56]} 72. d6 {[%clk 0:00:12]}  Kxg4 {[%clk 0:01:53]} 73. Ke6 {[%clk 0:00:12]}  Be3 {[%clk 0:01:51]} 74. d7 {[%clk 0:00:13]}  Bg5 {[%clk 0:01:50]} 75. Bxe5 {[%clk 0:00:13]}  Kf3 {[%clk 0:01:48]} 76. Bf6 {[%clk 0:00:13]} 1-0


[Site "https://www.chess.com"]

[Event "Titled Tuesday Blitz June 21 Late 2022"]
[White "Vifleemskaia, Svetlana"]
[Black "Mortazavi, Ali"]
[WhiteFideId "4129490"]
[BlackFideId "401323"]
[WhiteElo "1929"]
[BlackElo "2339"]
[Result "0-1"]
[Round "04"]
[TimeControl "180+1"]
[Date "2022.06.22"]
[WhiteClock "0:00:03"]
[BlackClock "0:01:00"]

1. d4 {[%clk 0:02:55]}  Nf6 {[%clk 0:02:56]} 2. c4 {[%clk 0:02:51]}  g6 {[%clk 0:02:53]} 3. Nc3 {[%clk 0:02:49]}  Bg7 {[%clk 0:02:54]} 4. e4 {[%clk 0:02:49]}  O-O {[%clk 0:02:54]} 5. Nge2 {[%clk 0:02:49]}  d6 {[%clk 0:02:55]} 6. Ng3 {[%clk 0:02:49]}  c6 {[%clk 0:02:55]} 7. Be2 {[%clk 0:02:50]}  a6 {[%clk 0:02:56]} 8. a4 {[%clk 0:02:49]}  a5 {[%clk 0:02:56]} 9. O-O {[%clk 0:02:49]}  e5 {[%clk 0:02:56]} 10. d5 {[%clk 0:02:49]}  Na6 {[%clk 0:02:55]} 11. Be3 {[%clk 0:02:47]}  h5 {[%clk 0:02:52]} 12. Qd2 {[%clk 0:02:43]}  h4 {[%clk 0:02:51]} 13. Nh1 {[%clk 0:02:43]}  cxd5 {[%clk 0:02:45]} 14. exd5 {[%clk 0:02:41]}  h3 {[%clk 0:02:34]} 15. g3 {[%clk 0:02:37]}  Nc5 {[%clk 0:02:24]} 16. Ra3 {[%clk 0:02:31]}  Nfe4 {[%clk 0:01:51]} 17. Nxe4 {[%clk 0:02:25]}  Nxe4 {[%clk 0:01:51]} 18. Qc1 {[%clk 0:02:15]}  f5 {[%clk 0:01:45]} 19. f3 {[%clk 0:02:15]}  Nc5 {[%clk 0:01:44]} 20. Bg5 {[%clk 0:02:10]}  Qb6 {[%clk 0:01:41]} 21. Nf2 {[%clk 0:01:58]}  Nb3 {[%clk 0:01:36]} 22. Qe3 {[%clk 0:01:44]}  Nd4 {[%clk 0:01:36]} 23. Rb1 {[%clk 0:01:25]}  f4 {[%clk 0:01:30]} 24. gxf4 {[%clk 0:01:13]}  exf4 {[%clk 0:01:30]} 25. Qd2 {[%clk 0:00:33]}  Rf5 {[%clk 0:01:22]} 26. c5 {[%clk 0:00:17]}  Rxg5+ {[%clk 0:01:20]} 27. Kh1 {[%clk 0:00:16]}  dxc5 {[%clk 0:01:10]} 28. Ne4 {[%clk 0:00:08]}  Rg2 {[%clk 0:01:08]} 29. Re1 {[%clk 0:00:03]}  Bf5 {[%clk 0:01:00]} 0-1


[Site "https://www.chess.com"]

[Event "Titled Tuesday Blitz June 21 Late 2022"]
[White "Vujic, Mihailo"]
[Black "Wang, Isaac"]
[WhiteFideId "918873"]
[BlackFideId "30977185"]
[WhiteElo "2256"]
[BlackElo "2307"]
[Result "1-0"]
[Round "04"]
[TimeControl "180+1"]
[Date "2022.06.22"]
[WhiteClock "0:00:14"]
[BlackClock "0:00:03"]

1. e4 {[%clk 0:03:00]}  c5 {[%clk 0:02:58]} 2. Nf3 {[%clk 0:02:59]}  Nc6 {[%clk 0:02:58]} 3. c3 {[%clk 0:02:59]}  Nf6 {[%clk 0:02:57]} 4. e5 {[%clk 0:02:59]}  Nd5 {[%clk 0:02:57]} 5. d4 {[%clk 0:03:00]}  cxd4 {[%clk 0:02:57]} 6. Bc4 {[%clk 0:02:59]}  Nb6 {[%clk 0:02:56]} 7. Bb3 {[%clk 0:02:59]}  d6 {[%clk 0:02:49]} 8. exd6 {[%clk 0:02:59]}  Qxd6 {[%clk 0:02:48]} 9. Na3 {[%clk 0:02:58]}  a6 {[%clk 0:02:38]} 10. O-O {[%clk 0:02:57]}  e6 {[%clk 0:02:27]} 11. Nxd4 {[%clk 0:02:57]}  Nxd4 {[%clk 0:02:26]} 12. cxd4 {[%clk 0:02:56]}  Be7 {[%clk 0:02:24]} 13. Qf3 {[%clk 0:02:57]}  O-O {[%clk 0:02:20]} 14. Bf4 {[%clk 0:02:57]}  Qd7 {[%clk 0:02:16]} 15. Rad1 {[%clk 0:02:52]}  Nd5 {[%clk 0:02:13]} 16. Bxd5 {[%clk 0:02:41]}  exd5 {[%clk 0:02:09]} 17. Qg3 {[%clk 0:02:37]}  Kh8 {[%clk 0:02:04]} 18. Rfe1 {[%clk 0:02:36]}  Bf6 {[%clk 0:01:57]} 19. Be5 {[%clk 0:02:34]}  Qf5 {[%clk 0:01:54]} 20. Bxf6 {[%clk 0:02:32]}  Qxf6 {[%clk 0:01:55]} 21. Re5 {[%clk 0:02:31]}  Be6 {[%clk 0:01:53]} 22. Rde1 {[%clk 0:02:29]}  Rac8 {[%clk 0:01:50]} 23. h3 {[%clk 0:02:24]}  h6 {[%clk 0:01:49]} 24. Kh2 {[%clk 0:02:23]}  b5 {[%clk 0:01:44]} 25. R1e3 {[%clk 0:02:05]}  b4 {[%clk 0:01:34]} 26. Rf3 {[%clk 0:01:57]}  Qe7 {[%clk 0:01:28]} 27. Nb1 {[%clk 0:01:55]}  Rc2 {[%clk 0:01:26]} 28. Qf4 {[%clk 0:01:45]}  Rxb2 {[%clk 0:01:17]} 29. Nd2 {[%clk 0:01:45]}  a5 {[%clk 0:01:12]} 30. Rh5 {[%clk 0:01:45]}  Kh7 {[%clk 0:00:54]} 31. Rg3 {[%clk 0:01:38]}  Qf6 {[%clk 0:00:36]} 32. Qe3 {[%clk 0:01:26]}  a4 {[%clk 0:00:28]} 33. Nf3 {[%clk 0:01:26]}  b3 {[%clk 0:00:25]} 34. axb3 {[%clk 0:01:23]}  axb3 {[%clk 0:00:20]} 35. Qd3+ {[%clk 0:01:06]}  g6 {[%clk 0:00:16]} 36. Rh4 {[%clk 0:00:26]}  Kg7 {[%clk 0:00:11]} 37. Qe3 {[%clk 0:00:26]}  Rh8 {[%clk 0:00:09]} 38. Rf4 {[%clk 0:00:23]}  Bf5 {[%clk 0:00:07]} 39. Nh4 {[%clk 0:00:22]}  Kh7 {[%clk 0:00:04]} 40. Nxf5 {[%clk 0:00:17]}  gxf5 {[%clk 0:00:05]} 41. Qf3 {[%clk 0:00:15]}  Rc2 {[%clk 0:00:03]} 42. Rxf5 {[%clk 0:00:14]} 1-0


[Site "https://www.chess.com"]

[Event "Titled Tuesday Blitz June 21 Late 2022"]
[White "Wachinger, Guenther"]
[Black "Romanchuk, Viktor"]
[WhiteFideId "4604261"]
[BlackFideId "14109271"]
[WhiteElo "2212"]
[BlackElo "2242"]
[Result "1/2-1/2"]
[Round "04"]
[TimeControl "180+1"]
[Date "2022.06.22"]
[WhiteClock "0:01:51"]
[BlackClock "0:02:26"]

1. e4 {[%clk 0:03:00]}  e6 {[%clk 0:02:57]} 2. d4 {[%clk 0:03:00]}  d5 {[%clk 0:02:55]} 3. Nd2 {[%clk 0:02:56]}  dxe4 {[%clk 0:02:55]} 4. Nxe4 {[%clk 0:02:57]}  Nd7 {[%clk 0:02:55]} 5. g3 {[%clk 0:02:58]}  Ngf6 {[%clk 0:02:56]} 6. Nxf6+ {[%clk 0:02:57]}  Nxf6 {[%clk 0:02:57]} 7. Bg2 {[%clk 0:02:58]}  e5 {[%clk 0:02:57]} 8. Nf3 {[%clk 0:02:35]}  exd4 {[%clk 0:02:53]} 9. Qxd4 {[%clk 0:02:34]}  Qxd4 {[%clk 0:02:51]} 10. Nxd4 {[%clk 0:02:35]}  Be7 {[%clk 0:02:50]} 11. O-O {[%clk 0:02:34]}  O-O {[%clk 0:02:50]} 12. Re1 {[%clk 0:02:34]}  Bc5 {[%clk 0:02:48]} 13. Nb3 {[%clk 0:02:34]}  Bb6 {[%clk 0:02:48]} 14. Be3 {[%clk 0:02:34]}  c6 {[%clk 0:02:42]} 15. Bxb6 {[%clk 0:02:19]}  axb6 {[%clk 0:02:43]} 16. Re7 {[%clk 0:02:19]}  Re8 {[%clk 0:02:36]} 17. Rxe8+ {[%clk 0:02:11]}  Nxe8 {[%clk 0:02:36]} 18. Re1 {[%clk 0:02:10]}  Kf8 {[%clk 0:02:34]} 19. a3 {[%clk 0:02:10]}  Nd6 {[%clk 0:02:26]} 20. Nd2 {[%clk 0:01:51]} 1/2-1/2


[Site "https://www.chess.com"]

[Event "Titled Tuesday Blitz June 21 Late 2022"]
[White "Wartiovaara, Oliver"]
[Black "Martinez Reyes, Pedro Ramon"]
[WhiteFideId "513024"]
[BlackFideId "3901807"]
[WhiteElo "1971"]
[BlackElo "2410"]
[Result "0-1"]
[Round "04"]
[TimeControl "180+1"]
[Date "2022.06.22"]
[WhiteClock "0:00:30"]
[BlackClock "0:02:36"]

1. e4 {[%clk 0:03:00]}  c6 {[%clk 0:02:59]} 2. d4 {[%clk 0:02:58]}  Na6 {[%clk 0:02:59]} 3. Nd2 {[%clk 0:02:59]}  Nc7 {[%clk 0:02:59]} 4. Ngf3 {[%clk 0:02:56]}  d5 {[%clk 0:02:59]} 5. Bd3 {[%clk 0:02:51]}  dxe4 {[%clk 0:02:55]} 6. Nxe4 {[%clk 0:02:52]}  Nf6 {[%clk 0:02:53]} 7. Nxf6+ {[%clk 0:02:49]}  exf6 {[%clk 0:02:54]} 8. O-O {[%clk 0:02:33]}  Bd6 {[%clk 0:02:53]} 9. h3 {[%clk 0:02:25]}  O-O {[%clk 0:02:53]} 10. c4 {[%clk 0:02:22]}  Be6 {[%clk 0:02:51]} 11. b3 {[%clk 0:02:18]}  Qd7 {[%clk 0:02:49]} 12. Qc2 {[%clk 0:02:05]}  g6 {[%clk 0:02:44]} 13. Bb2 {[%clk 0:02:00]}  Rfe8 {[%clk 0:02:41]} 14. d5 {[%clk 0:01:48]}  Bxh3 {[%clk 0:02:38]} 15. gxh3 {[%clk 0:01:10]}  Qxh3 {[%clk 0:02:39]} 16. c5 {[%clk 0:00:30]}  Qg4+ {[%clk 0:02:36]} 0-1


[Site "https://www.chess.com"]

[Event "Titled Tuesday Blitz June 21 Late 2022"]
[White "Yoo, Christopher Woojin"]
[Black "Sjugirov, Sanan"]
[WhiteFideId "30909694"]
[BlackFideId "4189302"]
[WhiteElo "2105"]
[BlackElo "2602"]
[Result "1-0"]
[Round "04"]
[TimeControl "180+1"]
[Date "2022.06.21"]
[WhiteClock "0:00:12"]
[BlackClock "0:00:02"]

1. e4 {[%clk 0:03:00]}  c5 {[%clk 0:03:00]} 2. Nf3 {[%clk 0:03:00]}  Nc6 {[%clk 0:03:00]} 3. b4 {[%clk 0:03:00]}  cxb4 {[%clk 0:02:58]} 4. d4 {[%clk 0:03:00]}  d5 {[%clk 0:02:57]} 5. exd5 {[%clk 0:03:01]}  Qxd5 {[%clk 0:02:57]} 6. c4 {[%clk 0:03:01]}  Qd8 {[%clk 0:02:39]} 7. d5 {[%clk 0:02:54]}  Nb8 {[%clk 0:02:39]} 8. Qa4+ {[%clk 0:02:05]}  Nd7 {[%clk 0:02:37]} 9. Qxb4 {[%clk 0:02:06]}  e6 {[%clk 0:02:25]} 10. Qb3 {[%clk 0:02:05]}  Nc5 {[%clk 0:01:55]} 11. Qe3 {[%clk 0:02:02]}  Nf6 {[%clk 0:01:54]} 12. Be2 {[%clk 0:01:52]}  Bd6 {[%clk 0:01:53]} 13. O-O {[%clk 0:01:51]}  O-O {[%clk 0:01:53]} 14. dxe6 {[%clk 0:01:51]}  Bxe6 {[%clk 0:01:50]} 15. Rd1 {[%clk 0:01:40]}  Qc7 {[%clk 0:01:43]} 16. Nc3 {[%clk 0:01:11]}  a6 {[%clk 0:01:43]} 17. Qd4 {[%clk 0:01:03]}  Rad8 {[%clk 0:01:35]} 18. Qh4 {[%clk 0:01:04]}  Be7 {[%clk 0:01:08]} 19. Bf4 {[%clk 0:01:03]}  Qa5 {[%clk 0:01:08]} 20. Be5 {[%clk 0:01:03]}  Rfe8 {[%clk 0:00:52]} 21. Qf4 {[%clk 0:00:53]}  Ng4 {[%clk 0:00:26]} 22. Bd4 {[%clk 0:00:45]}  Nf6 {[%clk 0:00:12]} 23. Rab1 {[%clk 0:00:26]}  h6 {[%clk 0:00:11]} 24. h3 {[%clk 0:00:26]}  Rc8 {[%clk 0:00:05]} 25. Ne5 {[%clk 0:00:20]}  Ncd7 {[%clk 0:00:02]} 26. Nxd7 {[%clk 0:00:15]}  Nxd7 {[%clk 0:00:03]} 27. Rxb7 {[%clk 0:00:14]}  Bg5 {[%clk 0:00:03]} 28. Qg3 {[%clk 0:00:13]}  Nf6 {[%clk 0:00:02]} 29. h4 {[%clk 0:00:12]} 1-0


[Site "https://www.chess.com"]